fUSD/lending_fUSD_20250407
["ID","MTS","AMOUNT","RATE_DAILY","PERIOD"]
[357353411,1744010713413,1000.0,0.00043379,30]
[357353412,1744010713944,1000.0,0.00043379,30]
[357353413,1744010714041,1000.0,0.00043379,30]
[357353414,1744010714578,1000.0,0.00043379,30]
[357353415,1744010714667,1000.0,0.00043379,30]
[357353416,1744010714798,2730.92732391,0.00043379,90]
[357353417,1744010715604,2000.0,0.00043379,30]
[357353418,1744010715678,3184.79051224,0.00043379,30]
[357353419,1744010715867,1000.0,0.00043379,30]
[357353420,1744010715970,1000.0,0.00043379,30]
[357353421,1744010716289,157.69315035,0.00043379,120]
[357353422,1744010716400,1000.0,0.00043379,60]
[357353424,1744010716475,224.89609321,0.00043379,30]
[357353425,1744010716549,676.01727132,0.00043379,30]
[357353426,1744010716651,511.02837909,0.00043379,30]
[357353427,1744010716774,999.999999,0.00043379,120]
[357353428,1744010717103,381.93005294,0.00043379,30]
[357353429,1744010717210,827.79326666,0.00043379,91]
[357353430,1744010717278,1696.0763931,0.00043379,30]
[357353431,1744010717573,713.93334831,0.00043379,30]
[357353432,1744010717688,101177.04462253,0.00043379,30]
[357353433,1744010717832,876.11914595,0.00043379,30]
[357353434,1744010718111,1000.0,0.00043379,30]
[357353435,1744010718210,2776.99628491,0.00043379,30]
[357353436,1744010718285,2378.86908775,0.00043379,30]
[357353438,1744010721276,1614.62193986,0.00043379,120]
[357353439,1744010722050,360.87665112,0.00043379,120]
[357353440,1744010725003,739.3164261,0.00043379,30]
[357353441,1744010725109,1247.2286427,0.00043379,120]
[357353442,1744010728241,2017.18534867,0.00026,120]
[357353443,1744010728339,1248.06894888,0.00043379,30]
[357353444,1744010729682,681.28406919,0.00043379,30]
[357353445,1744010730440,869.77857743,0.00043379,30]
[357353446,1744010730590,500.0,0.00043379,30]
[357353447,1744010733875,1043.47629705,0.0002,120]
[357353448,1744010735114,-797.11009186,0.0002,2]
[357353449,1744010738557,265.21083623,0.00043379,30]
[357353450,1744010738602,-500000.0,0.0002,2]
[357353451,1744010739310,-500000.0,0.0002,2]
[357353452,1744010739460,288.61551045,0.00043379,120]
[357353453,1744010740219,-500000.0,0.0002,2]
[357353454,1744010741076,-500000.0,0.0002,2]
[357353455,1744010741609,2500.0,0.00043379,30]
[357353456,1744010743164,1143.99042409,0.00043379,120]
[357353457,1744010744763,-100000.0,0.0002,2]
[357353458,1744010745638,152.31799606,0.00043379,120]
[357353459,1744010746083,-1295.38718728,0.0002,2]
[357353460,1744010746706,1804.43306693,0.00043379,120]
[357353461,1744010748215,361.15054417,0.00043379,120]
[357353462,1744010748304,250.0,0.00043379,120]
[357353463,1744010751401,1000.0,0.00043379,30]
[357353464,1744010751662,858.16759627,0.00043379,30]
[357353465,1744010754961,2465.47931355,0.00043379,120]
[357353466,1744010756181,3000.0,0.00043379,30]
[357353467,1744010757675,281.36868035,0.00017,120]
[357353468,1744010759596,866.3755023,0.00043379,30]
[357353469,1744010762820,1837.1341407,0.00043379,90]
[357353470,1744010765248,160.83812646,0.00043379,120]
[357353471,1744010768254,1000.0,0.00043379,30]
[357353472,1744010769716,933.20858268,0.00043379,30]
[357353473,1744010770306,825.15390843,0.00043379,120]
[357353474,1744010770443,500.01501939,0.00043379,30]
[357353475,1744010771541,679.00599013,0.00043379,60]
[357353476,1744010773257,1000.0,0.00043379,30]
[357353477,1744010775004,455.15052207,0.00043379,30]
[357353478,1744010775167,208.87143885,0.00043379,30]
[357353479,1744010775639,964.08788536,0.00043379,30]
[357353480,1744010776234,252.86342578,0.00043379,120]
[357353481,1744010778323,208.70625171,0.00043379,120]
[357353482,1744010782152,1063.1373244,0.000209,30]
[357353483,1744010782340,478.33732779,0.00043379,120]
[357353484,1744010785900,1015.05689676,0.00043379,30]
[357353485,1744010786770,4609.92313788,0.00031,120]
[357353486,1744010789796,214.17533439,0.00043379,120]
[357353487,1744010791988,1000.0,0.00043379,30]
[357353488,1744010792063,352.37100217,0.00043379,30]
[357353489,1744010793425,322.1836005,0.00043379,60]
[357353490,1744010794440,2900.0,0.000225,15]
[357353491,1744010796977,1000.0,0.00043379,60]
[357353492,1744010804932,250.0,0.00043379,120]
[357353493,1744010805144,705.07151797,0.00043379,120]
[357353494,1744010806735,354.73143161,0.00043379,30]
[357353495,1744010807423,206.77883778,0.00043379,30]
[357353496,1744010815611,1000.0,0.00043379,30]
[357353497,1744010816201,406.43303704,0.00043379,120]
[357353498,1744010821126,2725.6922035,0.00015,14]
[357353499,1744010823533,288.88996569,0.00043379,120]
[357353500,1744010824053,189.38508362,0.00043379,120]
[357353501,1744010827476,1000.0,0.00043379,60]
[357353502,1744010829485,251.66095975,0.00043379,30]
[357353503,1744010830240,1691.699,0.00043379,30]
[357353504,1744010837067,1082.85684842,0.00043379,120]
[357353505,1744010839232,-300.0,0.000198,7]
[357353506,1744010839334,1000.0,0.00043379,30]
[357353507,1744010844086,-379.761893,0.000198,2]
[357353508,1744010844108,-354.94709593,0.000198,7]
[357353510,1744010851146,1000.0,0.00043379,30]
[357353511,1744010853688,1014.79773684,0.00043379,30]
[357353512,1744010854099,-45.05290407,0.000198,7]
[357353513,1744010854125,-1533.4715578,0.000199,2]
[357353515,1744010859080,1156.72137318,0.00043379,120]
[357353516,1744010863056,1000.0,0.00043379,60]
[357353517,1744010864598,176.24168609,0.00043379,120]
[357353518,1744010869384,1071.98291225,0.00043379,120]
[357353519,1744010870629,2737.80062817,0.00043379,120]
[357353520,1744010871411,313.34796504,0.00043379,120]
[357353521,1744010871671,401.52482481,0.00043379,30]
[357353522,1744010872340,3085.65843815,0.00043379,30]
[357353523,1744010872649,2678.19972892,0.00043379,120]
[357353524,1744010873461,685.73663869,0.00043379,120]
[357353525,1744010873875,595.64126867,0.00043379,30]
[357353526,1744010874560,611.92150718,0.0003,120]
[357353527,1744010874950,1000.0,0.00043379,60]
[357353528,1744010875532,413.1419859,0.00043379,30]
[357353529,1744010876878,1086.70117758,0.00043379,30]
[357353530,1744010877956,1162.5355374,0.00043379,120]
[357353531,1744010879887,20691.89711651,0.00013,15]
[357353532,1744010880533,406.99424373,0.00043379,30]
[357353533,1744010884658,370.26407598,0.00043379,30]
[357353534,1744010886289,1076.12152319,0.00043379,30]
[357353535,1744010886722,1000.0,0.00043379,30]
[357353536,1744010887954,953.55274122,0.00043379,120]
[357353537,1744010889406,381.79403915,0.00043379,120]
[357353538,1744010891228,182.67179534,0.00043379,60]
[357353539,1744010894517,886.80251625,0.00043379,30]
[357353540,1744010895067,705.42553194,0.00043379,30]
[357353541,1744010895099,24712.01215972,0.0002,20]
[357353542,1744010896545,33008.92881793,0.0002,14]
[357353543,1744010897572,-152.26124739,0.0002,14]
[357353544,1744010897918,500.0,0.00043379,30]
[357353545,1744010898255,320.90214451,0.0002,120]
[357353546,1744010898528,1000.0,0.00043379,30]
[357353547,1744010910833,-175.69194505,0.00015,2]
[357353548,1744010912696,419.19963265,0.00043379,120]
[357353549,1744010912767,373.38606528,0.00043379,120]
[357353550,1744010913186,1000.80331199,0.00043379,120]
[357353551,1744010913219,-324.30805495,0.00015,2]
[357353552,1744010913303,698.56113847,0.00043379,120]
[357353553,1744010914050,183.04308049,0.00043379,60]
[357353555,1744010915312,204.2364251,0.00043379,30]
[357353557,1744010918478,773.97542446,0.00043379,30]
[357353558,1744010918560,418.46461186,0.00043379,30]
[357353559,1744010918642,77505.36690953,0.00043379,120]
[357353560,1744010919511,211.18170907,0.00043379,30]
[357353561,1744010919596,267.50958743,0.00043379,30]
[357353562,1744010919679,403.59296247,0.00043379,30]
[357353563,1744010919766,904.06457333,0.00043379,120]
[357353564,1744010919940,604.14010413,0.00043379,45]
[357353565,1744010920627,407.51424968,0.00043379,120]
[357353566,1744010920931,313.8011171,0.00043379,30]
[357353567,1744010921009,1929.14895622,0.00043379,90]
[357353568,1744010921788,187.3934074,0.0002,120]
[357353569,1744010921884,-168.02469456,0.00014999,2]
[357353570,1744010921911,-81.97530544,0.00014999,2]
[357353571,1744010922008,171.37557114,0.00043379,120]
[357353572,1744010922197,307.3,0.00043379,60]
[357353573,1744010922411,650.28901528,0.00043379,30]
[357353574,1744010922636,208.24740922,0.00043379,30]
[357353575,1744010923211,165.3254078,0.00043379,30]
[357353577,1744010924580,2200.792901,0.00043379,120]
[357353578,1744010924748,2507.90631473,0.000226,120]
[357353580,1744010926477,980.53542237,0.00043379,120]
[357353581,1744010926609,487.25343078,0.00043379,120]
[357353582,1744010927501,211.09059369,0.00043379,120]
[357353585,1744010928752,1221.77679157,0.00043379,120]
[357353586,1744010928852,262.82848617,0.00043379,30]
[357353587,1744010929373,508.10968222,0.00043379,120]
[357353589,1744010929879,198.77816701,0.00043379,120]
[357353590,1744010930269,605.70049756,0.00043379,120]
[357353591,1744010930379,428.25250114,0.00043379,30]
[357353592,1744010930659,1147.78409851,0.00043379,120]
[357353593,1744010930755,4914.74221702,0.00028,60]
[357353594,1744010931083,1361.0,0.00025,120]
[357353595,1744010931541,470.1135651,0.0001,120]
[357353598,1744010932467,309.50866874,0.0002,120]
[357353599,1744010933137,246.70080036,0.00043379,30]
[357353600,1744010944801,746.97561119,0.00043379,60]
[357353601,1744010946103,-109.19044025,0.00014999,2]
[357353602,1744010946130,-112235.22635975,0.00015,2]
[357353603,1744010946436,-300.0,0.00015,2]
[357353604,1744010950107,-4397.064784,0.00015,2]
[357353605,1744010951413,-797.73875261,0.00015,2]
[357353606,1744010954628,-8068.101076,0.00015,2]
[357353607,1744010957112,-46737.58278,0.00015,2]
[357353608,1744010960088,-57675.24126,0.00015,2]
[357353610,1744010967114,-93724.11496,0.00015,2]
[357353611,1744010971733,1023.45,0.00027383,120]
[357353612,1744010972159,1023.45,0.00030806,120]
[357353616,1744010999078,-9974.93279323,0.00015,2]
[357353618,1744010999125,-8280.63738954,0.00015,2]
[357353619,1744011029125,-150.0,0.00014999,2]
[357353628,1744011032312,-352.7321067,0.00015,2]
[357353629,1744011032323,-7539.4488,0.00015,2]
[357353630,1744011032335,-2446.83066427,0.00015,2]
[357353721,1744011037950,-1927.24636286,0.00015,2]
[357353722,1744011038155,-6956.88097117,0.00015,2]
[357353723,1744011038240,-154654.44623514,0.00015,2]
[357353724,1744011038281,-145939.7519499,0.00015,2]
[357353725,1744011038292,-255.0,0.00016124,2]
[357353726,1744011038301,-433.0,0.00017339,2]
[357353727,1744011038311,-508.38422587,0.000197,2]
[357353728,1744011038320,-175.69194505,0.000198,2]
[357353729,1744011038329,-2726.25018298,0.000199,2]
[357353730,1744011038338,-1400.0,0.000199,7]
[357353731,1744011038348,-19906.69634718,0.000199,2]
[357353732,1744011038358,-250.0,0.000199,2]
[357353733,1744011038368,-4512.102,0.000199,2]
[357353734,1744011038378,-250.0,0.00019954,2]
[357353735,1744011038387,-500.0,0.00019973,2]
[357353736,1744011038396,-500.0,0.00019973,2]
[357353737,1744011038406,-500.0,0.00019973,2]
[357353738,1744011038416,-354.82253066,0.00019973,2]
[357353739,1744011038426,-500.0,0.00019973,2]
[357353740,1744011038436,-157.99700987,0.00019973,2]
[357353741,1744011038446,-175.40682102,0.0001999,2]
[357353742,1744011038455,-174.92445173,0.00019999,2]
[357353743,1744011038468,-196.5662111,0.00019999,2]
[357353744,1744011038477,-276903.83605959,0.0002,2]
[357353745,1744011038490,-405801.20696239,0.0002,2]
[357353746,1744011038501,-2654.47080315,0.0002,2]
[357353749,1744011038568,176.98019,0.00027,120]
[357353751,1744011038581,-1257.13218223,0.0002,2]
[357353753,1744011038592,-1004.97151485,0.0002,2]
[357353755,1744011038604,-1107.0951411,0.0002,2]
[357353914,1744011040883,-0.00031832,0.0002,2]
[357353915,1744011040895,-751.87488423,0.0002,2]
[357353916,1744011041267,-18596.41333383,0.0002,2]
[357353917,1744011041278,-69103.22081542,0.0002,2]
[357353918,1744011041290,-17478.03079189,0.0002,2]
[357353919,1744011041328,-77261.65466334,0.0002,2]
[357353920,1744011041339,-5387.7872,0.0002,2]
[357353921,1744011041350,-1509.88175728,0.0002,2]
[357353947,1744011043715,-751.0,0.0002,2]
[357353948,1744011043727,-334.29500002,0.0002,2]
[357353949,1744011043759,-95170.03440849,0.0002,2]
[357353950,1744011044031,-2239.74932898,0.0002,2]
[357353951,1744011044043,-20187.93819875,0.0002,2]
[357353952,1744011044068,-52476.94850387,0.0002,2]
[357353979,1744011046115,-1492.41869662,0.0002,2]
[357353980,1744011046127,-6747.46418884,0.0002,2]
[357353981,1744011083618,-373306.3076732,0.0002,2]
[357353982,1744011083627,-2004.06880162,0.0002,2]
[357353983,1744011083637,-33596.19741416,0.0002,4]
[357353984,1744011083646,-2906.05037755,0.0002,14]
[357353985,1744011083655,-151.41,0.0002,2]
[357353986,1744011083664,-151.41,0.0002,2]
[357353987,1744011083673,-151.41,0.0002,2]
[357353988,1744011083682,-151.41,0.0002,2]
[357353989,1744011083690,-151.41,0.0002,2]
[357353990,1744011083700,-151.41,0.0002,2]
[357353991,1744011083709,-151.41,0.0002,2]
[357353992,1744011083718,-151.41,0.0002,2]
[357353993,1744011083727,-151.41,0.0002,2]
[357353994,1744011083737,-190.70476731,0.00021,2]
[357353995,1744011083747,-250.0,0.0002189,2]
[357353996,1744011083757,-507.14570927,0.00024773,2]
[357353997,1744011083767,-502.35256817,0.00024773,2]
[357353998,1744011083776,-282.91228451,0.00024773,2]
[357353999,1744011083785,-502.22703452,0.00024773,2]
[357354000,1744011083794,-500.0,0.00024773,2]
[357354001,1744011083803,-500.0,0.00024773,2]
[357354002,1744011083813,-501.64762414,0.00024773,2]
[357354003,1744011083822,-151.41,0.0002479,2]
[357354004,1744011083831,-151.41,0.0002479,2]
[357354005,1744011083840,-253466.603012,0.000248,2]
[357354006,1744011083850,-181.43381983,0.000249,2]
[357354007,1744011083860,-1000.0,0.00025452,2]
[357354008,1744011083871,-317.15859403,0.00025452,2]
[357354009,1744011083881,-156.19438763,0.00027,2]
[357354010,1744011083891,-170.35623503,0.0003,20]
[357354011,1744011083900,-451.13875179,0.0003,5]
[357354012,1744011083910,-1230.85412069,0.0003,10]
[357354013,1744011083919,-390.87996285,0.00030187,3]
[357354014,1744011083928,-680.93393755,0.00030252,5]
[357354015,1744011083937,-519.68288354,0.00030252,5]
[357354016,1744011083946,-2090.50308639,0.00031,2]
[357354017,1744011083957,-499.999999,0.0003121,2]
[357354018,1744011083966,-299.99,0.00032232,30]
[357354019,1744011083976,-19906.69634709,0.00032898,2]
[357354020,1744011083985,-1331.37198738,0.000329,30]
[357354021,1744011083995,-202.7839818,0.0003293,30]
[357354022,1744011084004,-262.69063495,0.00033,30]
[357354023,1744011084013,-4259.72174077,0.00033203,2]
[357354024,1744011084023,-1388.8,0.0003355,120]
[357354025,1744011084032,-1023.45,0.00034229,120]
[357354026,1744011084041,-151.41,0.0003499,2]
[357354027,1744011084051,-151.41,0.0003499,2]
[357354028,1744011084060,-181118.11288051,0.00035,40]
[357354029,1744011084069,-451.11207771,0.00035,30]
[357354030,1744011084079,-151.41,0.000351,2]
[357354031,1744011084089,-151.41,0.000351,2]
[357354032,1744011084098,-151.41,0.000351,2]
[357354033,1744011084107,-151.41,0.000351,2]
[357354034,1744011084117,-151.41,0.000351,2]
[357354035,1744011084126,-364309.83007344,0.0003511,30]
[357354036,1744011084688,-185420.50040409,0.0003511,30]
[357354037,1744011084713,-222706.75931278,0.0003511,30]
[357354038,1744011084723,-151.0,0.0003511,7]
[357354039,1744011084734,-151.0,0.0003511,7]
[357354040,1744011084744,-151.0,0.0003511,7]
[357354041,1744011084753,-214.465091,0.0003511,7]
[357354042,1744011084763,-214.465091,0.0003511,7]
[357354043,1744011084772,-186.2490324,0.00035271,7]
[357354044,1744011084781,-198.11987694,0.00035371,2]
[357354045,1744011084790,-1500.0,0.00035471,5]
[357354046,1744011084800,-151.41,0.0003592,2]
[357354047,1744011084809,-36035.83783481,0.0003593,7]
[357354048,1744011084830,-13137.48318491,0.0003593,7]
[357354049,1744011085322,-81620.72835458,0.0003593,7]
[357354050,1744011085442,-3411.69955865,0.000365,120]
[357354051,1744011085568,-1023.45,0.00037652,120]
[357354052,1744011085686,-151.95805675,0.00037999,120]
[357354053,1744011085806,-1650.91,0.0003872,2]
[357354054,1744011085925,-3221.27,0.00038986,14]
[357354055,1744011086048,-214.23852231,0.00039,120]
[357354056,1744011086172,-3570.99137609,0.00039,120]
[357354057,1744011086290,-268.93416523,0.00039,120]
[357354058,1744011086407,-2126.06496276,0.0003949,2]
[357354059,1744011086531,-209.38148751,0.0003962,2]
[357354060,1744011086662,-151.41,0.0003964,2]
[357354061,1744011086786,-112038.57174751,0.0003965,7]
[357354062,1744011086911,-426.36522509,0.00039726,15]
[357354063,1744011087042,-151.41,0.0003999,2]
[357354064,1744011087173,-151.41,0.0003999,2]
[357354065,1744011087303,-10054.45306465,0.0004,120]
[357354066,1744011087430,-723.38061955,0.0004,5]
[357354067,1744011087563,-5124.48467391,0.0004,30]
[357354068,1744011087692,-9802.51249345,0.0004,30]
[357354069,1744011087818,-405.78823983,0.0004,120]
[357354070,1744011087952,-2839.86651853,0.0004,30]
[357354071,1744011088090,-155.94990164,0.0004,15]
[357354072,1744011088214,-218632.638944,0.0004,30]
[357354073,1744011088341,-151.0,0.0004,14]
[357354074,1744011088466,-151.0,0.0004,14]
[357354075,1744011088602,-151.0,0.0004,14]
[357354076,1744011088733,-214.465091,0.0004,14]
[357354077,1744011088868,-214.465091,0.0004,14]
[357354078,1744011089138,858.1454,0.000199,2]
[357354079,1744011089239,500.0,0.00043302,120]
[357354080,1744011089915,200.82081097,0.00038356,60]
[357354081,1744011090669,250.0,0.00021,2]
[357354082,1744011090948,164.37,0.00031057,2]
[357354083,1744011091131,164.37,0.00038821,2]
[357354084,1744011091535,1120.02401481,0.00019999,5]
[357354085,1744011091664,1120.02401481,0.00034999,30]
[357354086,1744011091794,1120.02401481,0.00019999,5]
[357354087,1744011091936,1120.02401481,0.00024799,10]
[357354088,1744011092079,1120.02401481,0.00030999,15]
[357354089,1744011092236,1120.02401481,0.00035109,30]
[357354090,1744011092394,1120.02401484,0.00035109,30]
[357354091,1744011095319,500.0,0.00018182,2]
[357354094,1744011162221,168.0,0.00043302,30]
[357354095,1744011163344,206.0,0.00043302,30]
[357354096,1744011200799,255.6114581,0.00043302,120]
[357354097,1744011229785,250.0,0.00043302,120]
[357354098,1744011251150,227.69385976,0.00032876,120]
[357354099,1744011269080,697.33457551,0.00043302,120]
[357354102,1744011346307,12647.21737602,0.00043302,30]
[357354103,1744011379971,500.0,0.00043302,120]
[357354104,1744011393246,170.27,0.00013699,2]
[357354106,1744011398866,707.59391339,0.00043258,30]
[357354107,1744011404589,1933.75617683,0.00043258,30]
[357354108,1744011406057,250.0,0.00043258,120]
[357354109,1744011413638,1150.89060986,0.00043258,30]
[357354110,1744011414240,1000.0,0.00043258,60]
[357354111,1744011437575,3039.0,0.00043258,120]
[357354113,1744011478035,1000.0,0.00043258,30]
[357354114,1744011483015,1000.0,0.00043258,60]
[357354115,1744011488019,1000.0,0.00043258,30]
[357354116,1744011516916,1000.0,0.00043258,30]
[357354117,1744011522022,1000.0,0.00043258,60]
[357354118,1744011526895,1000.0,0.00043258,30]
[357354119,1744011547734,746.97561119,0.00043193,60]
[357354120,1744011552388,1000.0,0.00043193,30]
[357354121,1744011557346,1000.0,0.00043193,30]
[357354122,1744011576042,1000.0,0.00043193,60]
[357354123,1744011587888,1000.0,0.00043193,60]
[357354124,1744011596596,-300.0,0.00019899,2]
[357354125,1744011599769,1000.0,0.00043193,30]
[357354126,1744011605145,1000.0,0.00043193,30]
[357354127,1744011605249,1000.0,0.00043193,30]
[357354128,1744011606234,1000.0,0.00043193,30]
[357354129,1744011606309,1000.0,0.00043193,30]
[357354130,1744011607417,1000.0,0.00043193,30]
[357354131,1744011607512,1000.0,0.00043193,30]
[357354132,1744011607835,1000.0,0.00043193,30]
[357354133,1744011608548,1000.0,0.00043193,30]
[357354134,1744011609822,1000.0,0.00043193,30]
[357354135,1744011609899,1000.0,0.00043193,30]
[357354136,1744011610337,1000.0,0.00043193,30]
[357354137,1744011611219,1000.0,0.00043193,30]
[357354138,1744011611294,1000.0,0.00043193,30]
[357354139,1744011611455,1000.0,0.00043193,30]
[357354140,1744011611590,1000.0,0.00043193,30]
[357354141,1744011612314,224.89609321,0.00043193,30]
[357354142,1744011612387,272.62566988,0.00043193,30]
[357354143,1744011623432,1000.0,0.00043193,60]
[357354144,1744011635251,1000.0,0.00043193,30]
[357354145,1744011638132,310.65016,0.00027,120]
[357354146,1744011638462,310.65016,0.000323,120]
[357354147,1744011647088,1000.0,0.00043193,60]
[357354149,1744011659191,1000.0,0.00043193,60]
[357354150,1744011661321,300.0,0.00019899,2]
[357354151,1744011668932,500.0,0.00010959,30]
[357354152,1744011669414,500.0,0.00010959,30]
[357354153,1744011669860,500.0,0.00010959,30]
[357354154,1744011670367,500.0,0.00010959,30]
[357354155,1744011671146,500.0,0.00010959,30]
[357354156,1744011671215,1000.0,0.00043193,60]
[357354157,1744011671446,500.0,0.00010959,30]
[357354158,1744011671854,564.78728749,0.00010959,30]
[357354159,1744011682618,1000.0,0.00043193,120]
[357354160,1744011694498,1000.0,0.00043193,30]
[357354161,1744011706330,1000.0,0.00043193,30]
[357354162,1744011718191,1000.0,0.00043193,60]
[357354164,1744011730027,1000.0,0.00043193,120]
[357354165,1744011741829,1000.0,0.00043193,60]
[357354166,1744011753651,1000.0,0.00043193,60]
[357354167,1744011762573,168.0,0.00043193,30]
[357354168,1744011762893,206.0,0.00043193,30]
[357354169,1744011765848,1000.0,0.00043193,60]
[357354170,1744011778084,1000.0,0.00043193,60]
[357354171,1744011801694,307.3,0.00043193,60]
[357354173,1744011841390,300.0,0.00019899,2]
[357354174,1744011873130,174.59911554,0.00043193,30]
[357354175,1744011876746,-882.0811,0.000199,2]
[357354176,1744011876876,-11276.8322,0.000199,2]
[357354177,1744011877009,-150.98995775,0.000199,2]
[357354178,1744011877145,-250.0,0.0001995,2]
[357354179,1744011877285,-167.328432,0.0002,2]
[357354180,1744011877412,-360.0,0.0002167,2]
[357354181,1744011877547,-250.0,0.0002189,2]
[357354182,1744011877681,-150.0,0.00021917,2]
[357354183,1744011877806,-200.0,0.00023,2]
[357354184,1744011877936,-150.0,0.00023287,2]
[357354185,1744011878062,-150.0,0.00024657,2]
[357354186,1744011878187,-150.0,0.00026027,2]
[357354187,1744011878310,-164.13,0.00026849,2]
[357354188,1744011878438,-250.94210447,0.0002691,2]
[357354189,1744011878997,-150.0,0.00027397,2]
[357354190,1744011879124,-162.54,0.00028,2]
[357354191,1744011879258,-150.0,0.00028767,2]
[357354192,1744011879389,-150.0,0.00030136,2]
[357354193,1744011879519,-150.0,0.00031506,2]
[357354194,1744011879658,-150.0,0.00032876,2]
[357354195,1744011879801,-236.92501195,0.00034246,2]
[357354196,1744011879949,-151.0,0.0003511,7]
[357354197,1744011880098,-151.0,0.0003511,7]
[357354198,1744011880245,-460.571879,0.0003511,7]
[357354199,1744011880376,-460.571879,0.0003511,7]
[357354200,1744011880504,-500.0,0.00035471,2]
[357354201,1744011880630,-342.4614645,0.00035471,2]
[357354202,1744011880755,-170.4,0.00037,2]
[357354203,1744011880883,-2403.69726335,0.000372,103]
[357354204,1744011881011,-310.65016,0.000376,120]
[357354205,1744011881142,-440.81,0.00038612,2]
[357354206,1744011881271,-610.0,0.0003905,2]
[357354207,1744011881444,-276.94,0.00039144,120]
[357354208,1744011881561,-1000.0,0.00039899,30]
[357354209,1744011881683,-151.0,0.0004,14]
[357354210,1744011881802,-151.0,0.0004,14]
[357354211,1744011881935,-460.571879,0.0004,14]
[357354212,1744011882063,-460.571879,0.0004,14]
[357354213,1744011882185,-1000.0,0.0004004,30]
[357354214,1744011882308,-166.66,0.00040222,2]
[357354215,1744011882425,-555.97714095,0.0004037,2]
[357354216,1744011882541,-500.0,0.0004037,5]
[357354217,1744011882659,-200.0,0.00040553,2]
[357354218,1744011882782,-1000.0,0.00040565,2]
[357354219,1744011882915,-172.68,0.00040565,2]
[357354220,1744011883035,-154.83,0.00040755,2]
[357354221,1744011883154,-290.78,0.00040822,2]
[357354222,1744011883275,-3988.83609803,0.00040825,2]
[357354223,1744011883395,-257.0,0.00040834,4]
[357354224,1744011883514,-23900.0,0.00040835,2]
[357354225,1744011883629,-440.81,0.00040876,2]
[357354226,1744011883747,-250.0,0.00040918,2]
[357354227,1744011883864,-1000.0,0.00040941,120]
[357354228,1744011883986,-200.0,0.00040967,7]
[357354229,1744011884127,-2366.56976496,0.00041,5]
[357354230,1744011884250,-150.99,0.00041,30]
[357354231,1744011884372,-150.99,0.00041,2]
[357354232,1744011884495,-164.0,0.00041,14]
[357354233,1744011884622,-999.99,0.00041033,2]
[357354234,1744011884739,-299.99,0.00041033,120]
[357354235,1744011884859,-1023.45,0.00041074,120]
[357354236,1744011884981,-170.696,0.00041075,60]
[357354237,1744011885115,-2529.601,0.00041075,60]
[357354238,1744011885238,-179.219183,0.00041076,14]
[357354239,1744011885363,-199.945093,0.00041076,14]
[357354240,1744011885481,-2696.69582,0.00041076,14]
[357354241,1744011885599,-151.0,0.00041076,14]
[357354242,1744011885715,-151.0,0.00041076,14]
[357354243,1744011885834,-151.0,0.00041076,14]
[357354244,1744011885950,-151.0,0.00041076,5]
[357354245,1744011886076,-198.148707,0.00041076,14]
[357354246,1744011886200,-198.148707,0.00041076,14]
[357354247,1744011886326,-243.887658,0.00041076,14]
[357354248,1744011886447,-243.887658,0.00041076,14]
[357354249,1744011886573,-151.0,0.00041076,14]